[Event "*** Titled Tuesday Blitz"]
[Site "Chess.com"]
[Date "2020.10.27"]
[Round "3"]
[White "elohunter1999"]
[Black "malakismayil"]
[Result "1-0"]
[WhiteElo "2525"]
[BlackElo "2278"]
[TimeControl "180+1"]
[EndTime "10:28:57 PDT"]
[Termination "elohunter1999 won by resignation"]

1. e4 {[%clk 0:03:00.9]} 1... e5 {[%clk 0:02:58.8]} 2. Nf3 {[%clk 0:02:58.6]}
2... Nc6 {[%clk 0:02:59.2]} 3. Bc4 {[%clk 0:02:57.8]} 3... Bc5 {[%clk
0:02:58.8]} 4. c3 {[%clk 0:02:57.6]} 4... Nf6 {[%clk 0:02:55.5]} 5. d3 {[%clk
0:02:57.7]} 5... d6 {[%clk 0:02:53.2]} 6. O-O {[%clk 0:02:55.7]} 6... O-O {[%clk
0:02:43.2]} 7. h3 {[%clk 0:02:51.4]} 7... h6 {[%clk 0:02:42.3]} 8. Re1 {[%clk
0:02:46.5]} 8... Bb6 {[%clk 0:02:37]} 9. a4 {[%clk 0:02:45.1]} 9... a6 {[%clk
0:02:32.8]} 10. Nbd2 {[%clk 0:02:44.2]} 10... Qe7 {[%clk 0:02:31.7]} 11. Nf1
{[%clk 0:02:42]} 11... Be6 {[%clk 0:02:22.6]} 12. Ng3 {[%clk 0:02:28]} 12...
Rad8 {[%clk 0:02:13.9]} 13. Bxe6 {[%clk 0:02:23.5]} 13... fxe6 {[%clk
0:02:14.8]} 14. b4 {[%clk 0:02:20.7]} 14... Qf7 {[%clk 0:02:05.6]} 15. Be3
{[%clk 0:02:17.2]} 15... Bxe3 {[%clk 0:01:56.8]} 16. Rxe3 {[%clk 0:02:18.1]}
16... Ne7 {[%clk 0:01:46]} 17. Ra2 {[%clk 0:02:14.5]} 17... Ng6 {[%clk
0:01:44.8]} 18. d4 {[%clk 0:02:07.2]} 18... exd4 {[%clk 0:01:43.3]} 19. cxd4
{[%clk 0:02:01.4]} 19... e5 {[%clk 0:01:35.5]} 20. Rd2 {[%clk 0:02:00.7]} 20...
exd4 {[%clk 0:01:31.7]} 21. Nxd4 {[%clk 0:01:59]} 21... Rde8 {[%clk 0:01:24.9]}
22. Ndf5 {[%clk 0:01:36.5]} 22... Ne7 {[%clk 0:01:12.9]} 23. f3 {[%clk
0:01:23.4]} 23... Kh7 {[%clk 0:00:59]} 24. Qc2 {[%clk 0:01:20.6]} 24... Nxf5
{[%clk 0:00:57.2]} 25. Nxf5 {[%clk 0:01:20]} 25... g6 {[%clk 0:00:57.1]} 26. Nd4
{[%clk 0:01:13.7]} 26... Nh5 {[%clk 0:00:55.7]} 27. Rc3 {[%clk 0:01:07.4]} 27...
Re7 {[%clk 0:00:55]} 28. b5 {[%clk 0:01:07.5]} 28... a5 {[%clk 0:00:53.7]} 29.
Ne2 {[%clk 0:00:52.9]} 29... Rg8 {[%clk 0:00:49.7]} 30. Rd5 {[%clk 0:00:47.8]}
30... Rg7 {[%clk 0:00:48.9]} 31. b6 {[%clk 0:00:38.6]} 31... cxb6 {[%clk
0:00:41.1]} 32. Rxd6 {[%clk 0:00:38.8]} 32... Re6 {[%clk 0:00:36.9]} 33. Rxe6
{[%clk 0:00:35.2]} 33... Qxe6 {[%clk 0:00:37.8]} 34. Nd4 {[%clk 0:00:34.7]}
34... Qe5 {[%clk 0:00:37.2]} 35. Nb5 {[%clk 0:00:33.7]} 35... Rd7 {[%clk
0:00:26.5]} 36. Rc7 {[%clk 0:00:29.5]} 36... Qa1+ {[%clk 0:00:25.8]} 37. Kf2
{[%clk 0:00:19.6]} 37... Qg7 {[%clk 0:00:17.8]} 38. Rxd7 {[%clk 0:00:19.5]}
38... Qxd7 {[%clk 0:00:18.7]} 39. Qc7 {[%clk 0:00:19.1]} 39... Qxc7 {[%clk
0:00:14.7]} 40. Nxc7 {[%clk 0:00:20]} 40... Nf6 {[%clk 0:00:13.4]} 41. e5 {[%clk
0:00:20.3]} 41... Ng8 {[%clk 0:00:10.9]} 42. Nd5 {[%clk 0:00:19.6]} 42... Kg7
{[%clk 0:00:09.8]} 43. Nxb6 {[%clk 0:00:18]} 43... Kf7 {[%clk 0:00:10]} 44. Nc4
{[%clk 0:00:18.1]} 44... Ke6 {[%clk 0:00:09]} 45. f4 {[%clk 0:00:18.5]} 45...
Ne7 {[%clk 0:00:06.9]} 46. Nxa5 {[%clk 0:00:18.7]} 46... b6 {[%clk 0:00:07.2]}
47. Nc4 {[%clk 0:00:18.7]} 47... Nc8 {[%clk 0:00:07.6]} 48. Kf3 {[%clk
0:00:17.7]} 48... Kd5 {[%clk 0:00:07.5]} 49. Ne3+ {[%clk 0:00:18.1]} 49... Kc5
{[%clk 0:00:06.4]} 50. Ke4 {[%clk 0:00:17.9]} 50... Kb4 {[%clk 0:00:06.3]} 51.
g4 {[%clk 0:00:18.4]} 51... Kxa4 {[%clk 0:00:06.8]} 52. f5 {[%clk 0:00:18.9]}
52... gxf5+ {[%clk 0:00:07.1]} 53. gxf5 {[%clk 0:00:19.8]} 53... b5 {[%clk
0:00:07.7]} 54. f6 {[%clk 0:00:20.1]} 54... Nb6 {[%clk 0:00:07.3]} 55. e6 {[%clk
0:00:19.6]} 55... Nc8 {[%clk 0:00:06.7]} 56. f7 {[%clk 0:00:17.7]} 56... Nd6+
{[%clk 0:00:06.5]} 57. Kd5 {[%clk 0:00:18.1]} 57... Nxf7 {[%clk 0:00:07.3]} 58.
exf7 {[%clk 0:00:17.6]} 58... b4 {[%clk 0:00:08.2]} 59. f8=Q {[%clk 0:00:18.1]}
1-0

[Event "*** Titled Tuesday Blitz"]
[Site "Chess.com"]
[Date "2020.10.27"]
[Round "3"]
[White "kuban1991"]
[Black "kingofthenil"]
[Result "0-1"]
[WhiteElo "2758"]
[BlackElo "2468"]
[TimeControl "180+1"]
[EndTime "10:29:03 PDT"]
[Termination "kingofthenil won on time"]

1. Nf3 {[%clk 0:02:59.5]} 1... Nf6 {[%clk 0:02:41.4]} 2. g3 {[%clk 0:02:59.1]}
2... d5 {[%clk 0:02:41.7]} 3. Bg2 {[%clk 0:02:59.2]} 3... e6 {[%clk 0:02:38.6]}
4. d3 {[%clk 0:02:58.8]} 4... Be7 {[%clk 0:02:39]} 5. Nbd2 {[%clk 0:02:59.2]}
5... O-O {[%clk 0:02:39.9]} 6. O-O {[%clk 0:02:59.8]} 6... c5 {[%clk 0:02:40.8]}
7. e4 {[%clk 0:03:00.3]} 7... Nc6 {[%clk 0:02:41.7]} 8. e5 {[%clk 0:03:00.3]}
8... Nd7 {[%clk 0:02:41.8]} 9. Re1 {[%clk 0:03:00.7]} 9... Qc7 {[%clk
0:02:41.9]} 10. Qe2 {[%clk 0:03:00.4]} 10... b5 {[%clk 0:02:42.1]} 11. Nf1
{[%clk 0:02:58.3]} 11... Bb7 {[%clk 0:02:42.2]} 12. h4 {[%clk 0:02:58.4]} 12...
Rfc8 {[%clk 0:02:42.4]} 13. N1h2 {[%clk 0:02:57.1]} 13... Nd4 {[%clk 0:02:41.3]}
14. Qd1 {[%clk 0:02:47.6]} 14... b4 {[%clk 0:02:39.7]} 15. Bf4 {[%clk
0:02:41.6]} 15... a5 {[%clk 0:02:38.2]} 16. Nxd4 {[%clk 0:02:40.9]} 16... cxd4
{[%clk 0:02:39.1]} 17. Rc1 {[%clk 0:02:41.5]} 17... a4 {[%clk 0:02:37.1]} 18.
Qg4 {[%clk 0:02:35.8]} 18... Kh8 {[%clk 0:02:11.7]} 19. Nf3 {[%clk 0:02:34.6]}
19... Qd8 {[%clk 0:01:53.1]} 20. Nxd4 {[%clk 0:02:29.2]} 20... Nc5 {[%clk
0:01:36.6]} 21. b3 {[%clk 0:02:23.7]} 21... axb3 {[%clk 0:01:35.5]} 22. axb3
{[%clk 0:02:24.6]} 22... Ra2 {[%clk 0:01:35.2]} 23. Qf3 {[%clk 0:01:46.2]} 23...
Kg8 {[%clk 0:01:24.9]} 24. Qe3 {[%clk 0:01:42]} 24... Nd7 {[%clk 0:01:03.2]} 25.
Bg5 {[%clk 0:01:39.1]} 25... Bxg5 {[%clk 0:00:57.7]} 26. hxg5 {[%clk 0:01:39]}
26... Qb6 {[%clk 0:00:57.5]} 27. Bh3 {[%clk 0:01:34.6]} 27... Nf8 {[%clk
0:00:45.9]} 28. Ra1 {[%clk 0:01:25.4]} 28... Rca8 {[%clk 0:00:37.4]} 29. Rxa2
{[%clk 0:01:21.4]} 29... Rxa2 {[%clk 0:00:38.3]} 30. Bg4 {[%clk 0:01:10.6]}
30... Ng6 {[%clk 0:00:37]} 31. Bh5 {[%clk 0:01:09.5]} 31... Ne7 {[%clk
0:00:35.6]} 32. Qf4 {[%clk 0:01:04.1]} 32... g6 {[%clk 0:00:27.6]} 33. Bg4
{[%clk 0:01:03.9]} 33... Bc8 {[%clk 0:00:20.3]} 34. Rc1 {[%clk 0:00:46.5]} 34...
Nc6 {[%clk 0:00:19.2]} 35. Nxc6 {[%clk 0:00:45.9]} 35... Qxc6 {[%clk 0:00:20.1]}
36. Qxb4 {[%clk 0:00:13.2]} 36... Rxc2 {[%clk 0:00:17.4]} 37. Rxc2 {[%clk
0:00:14.1]} 37... Qxc2 {[%clk 0:00:17.9]} 38. Qb8 {[%clk 0:00:14.3]} 38... Kg7
{[%clk 0:00:17.3]} 39. Kg2 {[%clk 0:00:10.9]} 39... Ba6 {[%clk 0:00:13.7]} 40.
Qd8 {[%clk 0:00:08.8]} 40... Bxd3 {[%clk 0:00:10.2]} 41. Qf6+ {[%clk 0:00:09.5]}
41... Kg8 {[%clk 0:00:10.1]} 42. Qd8+ {[%clk 0:00:04.4]} 42... Kg7 {[%clk
0:00:10.7]} 43. Qf6+ {[%clk 0:00:04.9]} 43... Kg8 {[%clk 0:00:11.2]} 44. Bxe6
{[%clk 0:00:02.8]} 44... Be4+ {[%clk 0:00:07.2]} 45. Kh2 {[%clk 0:00:02.7]}
45... fxe6 {[%clk 0:00:05.9]} 46. Qxe6+ {[%clk 0:00:02.9]} 46... Kf8 {[%clk
0:00:05.3]} 47. Qf6+ {[%clk 0:00:03.4]} 47... Ke8 {[%clk 0:00:03.5]} 48. e6
{[%clk 0:00:04.3]} 48... Qc7 {[%clk 0:00:02.5]} 0-1

[Event "*** Titled Tuesday Blitz"]
[Site "Chess.com"]
[Date "2020.10.27"]
[Round "3"]
[White "pedromartinez91"]
[Black "Inga83"]
[Result "1-0"]
[WhiteElo "2627"]
[BlackElo "2403"]
[TimeControl "180+1"]
[EndTime "10:29:10 PDT"]
[Termination "pedromartinez91 won by resignation"]

1. b3 {[%clk 0:03:00.9]} 1... d5 {[%clk 0:02:59.2]} 2. Bb2 {[%clk 0:02:56.8]}
2... Nf6 {[%clk 0:02:58.9]} 3. Nf3 {[%clk 0:02:56.4]} 3... g6 {[%clk 0:02:58.7]}
4. Bxf6 {[%clk 0:02:53.7]} 4... exf6 {[%clk 0:02:57.5]} 5. d4 {[%clk 0:02:54.6]}
5... Bg7 {[%clk 0:02:57.2]} 6. e3 {[%clk 0:02:53.9]} 6... O-O {[%clk 0:02:57.6]}
7. g3 {[%clk 0:02:54.3]} 7... c5 {[%clk 0:02:57.3]} 8. c3 {[%clk 0:02:47.9]}
8... cxd4 {[%clk 0:02:56.9]} 9. cxd4 {[%clk 0:02:47.7]} 9... Bg4 {[%clk
0:02:55]} 10. Nbd2 {[%clk 0:02:47.1]} 10... Qa5 {[%clk 0:02:54.4]} 11. Bg2
{[%clk 0:02:40.9]} 11... Qa6 {[%clk 0:02:41.8]} 12. Qe2 {[%clk 0:02:39.3]} 12...
Rc8 {[%clk 0:02:40.4]} 13. Qxa6 {[%clk 0:02:34.2]} 13... Nxa6 {[%clk 0:02:40.2]}
14. O-O {[%clk 0:02:35.1]} 14... Rc2 {[%clk 0:02:34.3]} 15. Rfc1 {[%clk
0:02:33.3]} 15... Rac8 {[%clk 0:02:33.6]} 16. Rxc2 {[%clk 0:02:30.6]} 16... Rxc2
{[%clk 0:02:33]} 17. Bf1 {[%clk 0:02:31.2]} 17... Bf8 {[%clk 0:02:24.7]} 18. Bd3
{[%clk 0:02:18.1]} 18... Rc3 {[%clk 0:02:23.3]} 19. Ne1 {[%clk 0:02:12.1]} 19...
Nb4 {[%clk 0:02:19.9]} 20. Bf1 {[%clk 0:02:12.5]} 20... Bf5 {[%clk 0:02:12.3]}
21. Bg2 {[%clk 0:01:59.6]} 21... Nc2 {[%clk 0:02:06.1]} 22. Nxc2 {[%clk
0:01:43.1]} 22... Rxc2 {[%clk 0:02:05.9]} 23. Nf3 {[%clk 0:01:43.7]} 23... Ba3
{[%clk 0:02:03.3]} 24. Ne1 {[%clk 0:01:34.8]} 24... Re2 {[%clk 0:01:54.9]} 25.
Bf3 {[%clk 0:01:17.1]} 25... Rd2 {[%clk 0:01:52.5]} 26. Bxd5 {[%clk 0:01:16.2]}
26... Bb2 {[%clk 0:01:52.5]} 27. Nf3 {[%clk 0:01:16.1]} 27... Rc2 {[%clk
0:01:34.7]} 28. Rd1 {[%clk 0:01:14.5]} 28... b5 {[%clk 0:01:31.4]} 29. Rd2
{[%clk 0:01:09]} 29... Rc1+ {[%clk 0:01:29.3]} 30. Kg2 {[%clk 0:01:09.1]} 30...
Bc3 {[%clk 0:01:29.4]} 31. a4 {[%clk 0:00:19]} 31... Bxd2 {[%clk 0:01:26.9]} 32.
Nxd2 {[%clk 0:00:19.9]} 32... bxa4 {[%clk 0:01:25.4]} 33. bxa4 {[%clk
0:00:20.8]} 33... Bd3 {[%clk 0:01:24.3]} 34. Ne4 {[%clk 0:00:15.2]} 34... Bf1+
{[%clk 0:01:20.5]} 35. Kf3 {[%clk 0:00:14.3]} 35... Ra1 {[%clk 0:01:17.4]} 36.
Nc5 {[%clk 0:00:11.3]} 36... f5 {[%clk 0:01:14.2]} 37. h4 {[%clk 0:00:11.1]}
37... Bh3 {[%clk 0:01:13.6]} 38. Kf4 {[%clk 0:00:11]} 38... Ra2 {[%clk
0:01:12.7]} 39. f3 {[%clk 0:00:10.4]} 39... Ra3 {[%clk 0:01:09.9]} 40. g4 {[%clk
0:00:10]} 40... fxg4 {[%clk 0:01:08.8]} 41. fxg4 {[%clk 0:00:10.9]} 41... h6
{[%clk 0:01:07.9]} 42. g5 {[%clk 0:00:11]} 42... hxg5+ {[%clk 0:01:07.7]} 43.
hxg5 {[%clk 0:00:11.9]} 43... Ra1 {[%clk 0:01:07.6]} 44. Bc6 {[%clk 0:00:12]}
44... Kg7 {[%clk 0:01:06.3]} 45. Ne4 {[%clk 0:00:12]} 45... Bg2 {[%clk
0:01:04.6]} 46. d5 {[%clk 0:00:11.6]} 46... Rc1 {[%clk 0:01:00.1]} 47. Nf6
{[%clk 0:00:11.4]} 47... Rc4+ {[%clk 0:00:55.6]} 48. e4 {[%clk 0:00:11]} 48...
Bh3 {[%clk 0:00:51.6]} 49. Ke5 {[%clk 0:00:10.5]} 49... a5 {[%clk 0:00:50.1]}
50. Bb5 {[%clk 0:00:09.8]} 50... Rc5 {[%clk 0:00:43.4]} 51. Kd6 {[%clk
0:00:09.6]} 51... Rc1 {[%clk 0:00:39.4]} 52. Ke7 {[%clk 0:00:09.4]} 52... Rg1
{[%clk 0:00:34.2]} 53. Ne8+ {[%clk 0:00:08.7]} 53... Kg8 {[%clk 0:00:32.1]} 54.
d6 {[%clk 0:00:08.5]} 54... Rxg5 {[%clk 0:00:28.1]} 55. Nf6+ {[%clk 0:00:08.8]}
55... Kg7 {[%clk 0:00:25.6]} 56. Ne8+ {[%clk 0:00:09.1]} 56... Kg8 {[%clk
0:00:20.4]} 57. Kf6 {[%clk 0:00:09.5]} 57... Rg1 {[%clk 0:00:16.4]} 58. e5
{[%clk 0:00:09.9]} 58... Re1 {[%clk 0:00:14.1]} 59. Bc4 {[%clk 0:00:09.9]} 59...
Be6 {[%clk 0:00:12.5]} 60. Bxe6 {[%clk 0:00:09.6]} 60... fxe6 {[%clk 0:00:12.1]}
61. Kxe6 {[%clk 0:00:10.5]} 61... Kf8 {[%clk 0:00:11.9]} 62. d7 {[%clk
0:00:10.5]} 62... Rd1 {[%clk 0:00:11.8]} 63. Nd6 {[%clk 0:00:10.8]} 1-0

[Event "*** Titled Tuesday Blitz"]
[Site "Chess.com"]
[Date "2020.10.27"]
[Round "3"]
[White "kai_nov"]
[Black "tvjosue"]
[Result "1-0"]
[WhiteElo "2308"]
[BlackElo "2473"]
[TimeControl "180+1"]
[EndTime "10:29:10 PDT"]
[Termination "kai_nov won by resignation"]

1. d4 {[%clk 0:03:00.9]} 1... Nf6 {[%clk 0:02:56.3]} 2. c4 {[%clk 0:03:00.3]}
2... e6 {[%clk 0:02:56.4]} 3. Nc3 {[%clk 0:02:59.6]} 3... Bb4 {[%clk 0:02:55.6]}
4. f3 {[%clk 0:02:57.8]} 4... c5 {[%clk 0:02:55.2]} 5. d5 {[%clk 0:02:57]} 5...
b5 {[%clk 0:02:55.5]} 6. e4 {[%clk 0:02:51.2]} 6... O-O {[%clk 0:02:54.9]} 7. e5
{[%clk 0:02:47.1]} 7... Ne8 {[%clk 0:02:53.6]} 8. f4 {[%clk 0:02:45.8]} 8... d6
{[%clk 0:02:51.2]} 9. Nf3 {[%clk 0:02:43.1]} 9... exd5 {[%clk 0:02:36.5]} 10.
cxd5 {[%clk 0:02:39.4]} 10... Bg4 {[%clk 0:02:33.8]} 11. Bd3 {[%clk 0:02:30.9]}
11... Nd7 {[%clk 0:02:29.5]} 12. O-O {[%clk 0:02:15.2]} 12... dxe5 {[%clk
0:02:24.2]} 13. Nxb5 {[%clk 0:01:46.8]} 13... e4 {[%clk 0:01:40.8]} 14. Bxe4
{[%clk 0:01:40.4]} 14... a6 {[%clk 0:01:39.3]} 15. Nc3 {[%clk 0:01:34.9]} 15...
Nd6 {[%clk 0:01:37.4]} 16. Bc2 {[%clk 0:01:30.3]} 16... Re8 {[%clk 0:01:35.9]}
17. h3 {[%clk 0:01:11.7]} 17... Bf5 {[%clk 0:01:34.7]} 18. Bxf5 {[%clk
0:01:03.8]} 18... Nxf5 {[%clk 0:01:33.8]} 19. Qd3 {[%clk 0:01:03.3]} 19... Nd4
{[%clk 0:01:22.9]} 20. a3 {[%clk 0:00:48.3]} 20... Bxc3 {[%clk 0:01:19.9]} 21.
bxc3 {[%clk 0:00:46.6]} 21... Ne2+ {[%clk 0:01:19.3]} 22. Kh2 {[%clk 0:00:43.8]}
22... Qf6 {[%clk 0:01:14.1]} 23. Ng5 {[%clk 0:00:21.4]} 23... g6 {[%clk
0:01:09.3]} 24. Ne4 {[%clk 0:00:19.9]} 24... Qf5 {[%clk 0:01:06]} 25. Qxe2
{[%clk 0:00:16]} 25... Rxe4 {[%clk 0:01:05.9]} 26. Qd3 {[%clk 0:00:13.2]} 26...
h5 {[%clk 0:01:00.3]} 27. Bb2 {[%clk 0:00:11.7]} 27... c4 {[%clk 0:01:00.2]} 28.
Qd2 {[%clk 0:00:10.7]} 28... Nf6 {[%clk 0:01:00.1]} 29. Rad1 {[%clk 0:00:09.7]}
29... Rd8 {[%clk 0:00:56.8]} 30. d6 {[%clk 0:00:09.2]} 30... Rd7 {[%clk
0:00:57.2]} 31. a4 {[%clk 0:00:09]} 31... h4 {[%clk 0:00:55.9]} 32. Ba3 {[%clk
0:00:08.8]} 32... Nh5 {[%clk 0:00:53.9]} 33. Qd5 {[%clk 0:00:06.8]} 33... Qxd5
{[%clk 0:00:52.2]} 34. Rxd5 {[%clk 0:00:06.8]} 34... Nxf4 {[%clk 0:00:52.2]} 35.
Ra5 {[%clk 0:00:05.4]} 35... g5 {[%clk 0:00:49.1]} 36. Rxg5+ {[%clk 0:00:04.7]}
36... Ng6 {[%clk 0:00:49.4]} 37. Rgf5 {[%clk 0:00:03.6]} 37... Re2 {[%clk
0:00:45.7]} 38. Bc5 {[%clk 0:00:02.9]} 38... Rc2 {[%clk 0:00:41.9]} 39. Bd4
{[%clk 0:00:02.9]} 39... Ra2 {[%clk 0:00:38.9]} 40. a5 {[%clk 0:00:03.2]} 40...
Re2 {[%clk 0:00:38.7]} 41. Rh5 {[%clk 0:00:02.7]} 41... Rxd6 {[%clk 0:00:34.5]}
42. Rf4 {[%clk 0:00:02.7]} 42... f6 {[%clk 0:00:18.2]} 43. Rg4 {[%clk
0:00:02.8]} 43... f5 {[%clk 0:00:15.9]} 44. Rxf5 {[%clk 0:00:02.9]} 44... Ree6
{[%clk 0:00:15.9]} 45. Rfg5 {[%clk 0:00:02.9]} 45... Kf7 {[%clk 0:00:16.2]} 46.
Rf5+ {[%clk 0:00:03]} 46... Ke7 {[%clk 0:00:16.1]} 47. Bc5 {[%clk 0:00:02.5]}
47... Kd7 {[%clk 0:00:14.6]} 48. Bxd6 {[%clk 0:00:02.7]} 48... Rxd6 {[%clk
0:00:15.5]} 49. Rf7+ {[%clk 0:00:02.9]} 49... Kc6 {[%clk 0:00:15.1]} 50. Re4
{[%clk 0:00:02.4]} 50... Kb5 {[%clk 0:00:12.5]} 51. Rf5+ {[%clk 0:00:02.2]}
51... Ka4 {[%clk 0:00:10.8]} 52. Rxc4+ {[%clk 0:00:02.7]} 52... Kb3 {[%clk
0:00:11.3]} 53. Rb4+ {[%clk 0:00:03]} 53... Kxc3 {[%clk 0:00:11.5]} 54. Rb6
{[%clk 0:00:03.6]} 54... Ne7 {[%clk 0:00:08.2]} 55. Rxd6 {[%clk 0:00:03]} 55...
Nxf5 {[%clk 0:00:08]} 56. Rxa6 {[%clk 0:00:03.2]} 56... Ng3 {[%clk 0:00:07.7]}
57. Rb6 {[%clk 0:00:03.4]} 57... Nf1+ {[%clk 0:00:08]} 58. Kg1 {[%clk 0:00:04]}
58... Ng3 {[%clk 0:00:08.9]} 59. a6 {[%clk 0:00:04.3]} 59... Ne2+ {[%clk
0:00:09.4]} 60. Kf2 {[%clk 0:00:04.8]} 60... Nd4 {[%clk 0:00:10.3]} 61. a7
{[%clk 0:00:05.2]} 61... Nc2 {[%clk 0:00:11.2]} 62. a8=Q {[%clk 0:00:04.8]}
62... Nd4 {[%clk 0:00:12.1]} 1-0

[Event "*** Titled Tuesday Blitz"]
[Site "Chess.com"]
[Date "2020.10.27"]
[Round "3"]
[White "korbul"]
[Black "Chessalary"]
[Result "0-1"]
[WhiteElo "2587"]
[BlackElo "2403"]
[TimeControl "180+1"]
[EndTime "10:29:12 PDT"]
[Termination "Chessalary won by resignation"]

1. e4 {[%clk 0:03:00.9]} 1... c5 {[%clk 0:03:00]} 2. Nf3 {[%clk 0:03:00.3]} 2...
d6 {[%clk 0:03:00.3]} 3. d4 {[%clk 0:02:59.9]} 3... cxd4 {[%clk 0:03:01.2]} 4.
Nxd4 {[%clk 0:02:59.8]} 4... Nf6 {[%clk 0:02:57.6]} 5. Nc3 {[%clk 0:02:59.8]}
5... a6 {[%clk 0:02:57.3]} 6. Be2 {[%clk 0:02:58.1]} 6... e6 {[%clk 0:02:56]} 7.
f4 {[%clk 0:02:56.8]} 7... Be7 {[%clk 0:02:56.8]} 8. Be3 {[%clk 0:02:55.9]} 8...
O-O {[%clk 0:02:57.2]} 9. Bf3 {[%clk 0:02:56]} 9... Qc7 {[%clk 0:02:54]} 10. Qe2
{[%clk 0:02:55.3]} 10... Nbd7 {[%clk 0:02:53]} 11. O-O-O {[%clk 0:02:54.7]}
11... Nb6 {[%clk 0:02:48.7]} 12. g4 {[%clk 0:02:51.7]} 12... Nc4 {[%clk
0:02:48.3]} 13. g5 {[%clk 0:02:48.9]} 13... Nd7 {[%clk 0:02:47.1]} 14. h4 {[%clk
0:02:35.8]} 14... Nxe3 {[%clk 0:02:31.6]} 15. Qxe3 {[%clk 0:02:35]} 15... Nb6
{[%clk 0:02:32.1]} 16. Bg4 {[%clk 0:02:17.9]} 16... e5 {[%clk 0:02:19.5]} 17.
Nf5 {[%clk 0:02:14.2]} 17... Bxf5 {[%clk 0:02:16.2]} 18. exf5 {[%clk 0:02:09.9]}
18... f6 {[%clk 0:02:00.7]} 19. Bf3 {[%clk 0:01:58.7]} 19... Rac8 {[%clk
0:01:50.7]} 20. Rh2 {[%clk 0:01:57.1]} 20... Rfd8 {[%clk 0:01:35.3]} 21. Bd5+
{[%clk 0:01:54.3]} 21... Kh8 {[%clk 0:01:30.3]} 22. Be6 {[%clk 0:01:53.3]} 22...
Rb8 {[%clk 0:01:18.3]} 23. Rhd2 {[%clk 0:01:38.2]} 23... Nc4 {[%clk 0:00:59.7]}
24. Bxc4 {[%clk 0:01:37.1]} 24... Qxc4 {[%clk 0:01:00.6]} 25. Qe4 {[%clk
0:01:24.7]} 25... Qxe4 {[%clk 0:00:57.8]} 26. Nxe4 {[%clk 0:01:24]} 26... exf4
{[%clk 0:00:54.1]} 27. g6 {[%clk 0:01:09.6]} 27... hxg6 {[%clk 0:00:28.6]} 28.
fxg6 {[%clk 0:01:09.2]} 28... Kg8 {[%clk 0:00:18]} 29. Nc3 {[%clk 0:01:07]}
29... f5 {[%clk 0:00:16.6]} 30. h5 {[%clk 0:01:05.9]} 30... f3 {[%clk
0:00:16.4]} 31. Rf2 {[%clk 0:01:01.4]} 31... Bg5+ {[%clk 0:00:16.6]} 32. Kb1
{[%clk 0:01:01.3]} 32... b5 {[%clk 0:00:16.1]} 33. Rxf3 {[%clk 0:01:00.8]} 33...
f4 {[%clk 0:00:15]} 34. Nd5 {[%clk 0:01:00]} 34... Rf8 {[%clk 0:00:14.8]} 35. a3
{[%clk 0:00:53.6]} 35... Rf5 {[%clk 0:00:12.8]} 36. Nb4 {[%clk 0:00:41.4]} 36...
a5 {[%clk 0:00:08.8]} 37. Nc6 {[%clk 0:00:40.7]} 37... Rc8 {[%clk 0:00:07.8]}
38. Rxd6 {[%clk 0:00:39.9]} 38... Rc5 {[%clk 0:00:05.6]} 39. Nd4 {[%clk
0:00:35.3]} 39... Bf6 {[%clk 0:00:05.3]} 40. c3 {[%clk 0:00:26.1]} 40... b4
{[%clk 0:00:05.5]} 41. axb4 {[%clk 0:00:25.2]} 41... axb4 {[%clk 0:00:06.4]} 42.
Rd3 {[%clk 0:00:20]} 42... bxc3 {[%clk 0:00:06.4]} 43. bxc3 {[%clk 0:00:19.8]}
43... Rxc3 {[%clk 0:00:06.6]} 44. Rxc3 {[%clk 0:00:20.1]} 44... Rxc3 {[%clk
0:00:07.5]} 45. Nc6 {[%clk 0:00:18.3]} 45... f3 {[%clk 0:00:05]} 46. h6 {[%clk
0:00:13.9]} 46... f2 {[%clk 0:00:02.5]} 47. h7+ {[%clk 0:00:14.1]} 47... Kh8
{[%clk 0:00:02.8]} 48. Rd1 {[%clk 0:00:14.6]} 48... Rxc6 {[%clk 0:00:02.5]} 49.
Rf1 {[%clk 0:00:14.6]} 49... Bd4 {[%clk 0:00:03.1]} 50. Ka2 {[%clk 0:00:13.8]}
50... Rxg6 {[%clk 0:00:03.6]} 51. Kb3 {[%clk 0:00:12.4]} 51... Kxh7 {[%clk
0:00:04.5]} 52. Kc4 {[%clk 0:00:13.3]} 52... Be3 {[%clk 0:00:05]} 53. Kd3 {[%clk
0:00:13.5]} 53... Bb6 {[%clk 0:00:05.5]} 54. Ke2 {[%clk 0:00:14.4]} 54... Rg1
{[%clk 0:00:05.4]} 55. Rxf2 {[%clk 0:00:12.6]} 55... Bxf2 {[%clk 0:00:05.5]} 0-1